bitfinex/quotes_SOLUSD_20220228
["timestamp","ask_amount","ask_price","bid_price","bid_amount"]
[1646043157506,1.3966688,89.708,89.617,40.42018801]
[1646043157707,110.9,89.707,89.617,40.42018801]
[1646043157911,1.36819375,89.706,89.617,40.42018801]
[1646043158309,1.49399236,89.704,89.617,40.42018801]
[1646043158508,110.9,89.687,89.617,40.42018801]
[1646043158908,110.9,89.685,89.617,40.42018801]
[1646043159207,1.81556842,89.684,89.617,40.42018801]
[1646043160108,110.9,89.699,89.617,40.42018801]
[1646043160308,110.9,89.682,89.617,40.42018801]
[1646043160709,112.47133684,89.68,89.617,40.42018801]
[1646043161008,110.9,89.68,89.617,40.42018801]
[1646043161208,110.9,89.678,89.617,40.42018801]
[1646043161408,1.69444915,89.677,89.617,40.42018801]
[1646043161609,110.9,89.676,89.617,40.42018801]
[1646043161809,1.80228158,89.676,89.617,40.42018801]
[1646043163909,1.60934574,89.682,89.617,40.42018801]
[1646043165014,110.9,89.682,89.617,40.42018801]
[1646043165211,1.46502706,89.681,89.617,40.42018801]
[1646043170017,110.9,89.679,89.617,40.42018801]
[1646043170221,1.51472964,89.678,89.617,40.42018801]
[1646043170418,110.9,89.677,89.617,40.42018801]
[1646043170616,1.6782013,89.676,89.617,40.42018801]
[1646043170816,110.9,89.675,89.617,40.42018801]
[1646043171018,1.70847592,89.674,89.617,40.42018801]
[1646043171319,13.4,89.67,89.561,11.65689021]
[1646043171518,158.8691,89.669,89.562,6.0]
[1646043171717,1.77484744,89.668,89.562,6.0]
[1646043172117,110.9,89.666,89.563,44.56367604]
[1646043172318,1.70848489,89.665,89.563,44.56367604]
[1646043172518,110.9,89.664,89.563,44.56367604]
[1646043172721,1.77599573,89.663,89.563,44.56367604]
[1646043173017,110.9,89.662,89.563,44.56367604]
[1646043173220,1.56691658,89.661,89.563,44.56367604]
[1646043173620,142.66533178,89.66,89.563,44.56367604]
[1646043173819,1.8240675,89.659,89.563,44.56367604]
[1646043174023,110.9,89.658,89.563,44.56367604]
[1646043174221,1.53130847,89.657,89.563,44.56367604]
[1646043174822,110.9,89.656,89.563,44.56367604]
[1646043175024,1.68387254,89.655,89.563,44.56367604]
[1646043175423,31.76533178,89.654,89.563,44.56367604]
[1646043175624,110.9,89.651,89.563,44.56367604]
[1646043176025,110.9,89.649,89.563,44.56367604]
[1646043176225,1.8417581,89.648,89.563,44.56367604]
[1646043176426,110.9,89.647,89.563,44.56367604]
[1646043176627,1.80033451,89.646,89.563,44.56367604]
[1646043176828,110.9,89.645,89.563,44.56367604]
[1646043177027,110.9,89.639,89.563,44.56367604]
[1646043177227,110.9,89.637,89.563,44.56367604]
[1646043177627,1.57857646,89.636,89.563,44.56367604]
[1646043179429,110.9,89.634,89.563,44.56367604]
[1646043179630,1.57531005,89.633,89.563,44.56367604]
[1646043179827,110.9,89.632,89.563,44.56367604]
[1646043180027,1.67723698,89.631,89.563,44.56367604]
[1646043180451,1.4594791,89.629,89.563,44.56367604]
[1646043180750,110.9,89.628,89.563,44.56367604]
[1646043181352,1.4594791,89.629,89.563,44.56367604]
[1646043181554,12.71722744,89.638,89.563,44.56367604]
[1646043181952,23.33567694,89.645,89.564,3.07805234]
[1646043182149,1.62707409,89.658,89.564,3.07805234]
[1646043182350,110.9,89.659,89.565,6.0]
[1646043182550,110.9,89.649,89.564,3.07805234]
[1646043182752,1.62578594,89.648,89.563,44.56367604]
[1646043182954,156.7418633,89.647,89.563,44.56367604]
[1646043183151,1.4058812,89.646,89.563,44.56367604]
[1646043183352,110.9,89.645,89.563,44.56367604]
[1646043183551,110.9,89.639,89.563,44.56367604]
[1646043183752,1.78935347,89.638,89.563,44.56367604]
[1646043183951,110.9,89.637,89.563,44.56367604]
[1646043184155,1.84327432,89.636,89.563,44.56367604]
[1646043184352,110.9,89.635,89.563,44.56367604]
[1646043184552,1.50050288,89.634,89.563,44.56367604]
[1646043184753,5.22678547,89.633,89.563,44.56367604]
[1646043184954,110.9,89.632,89.563,44.56367604]
[1646043185152,1.67159044,89.631,89.563,44.56367604]
[1646043185555,2.06009057,89.63,89.563,44.56367604]
[1646043185753,1.41375351,89.628,89.563,44.56367604]
[1646043186152,0.70809057,89.627,89.563,44.56367604]
[1646043186453,110.9,89.626,89.563,44.56367604]
[1646043186653,1.66782136,89.625,89.563,44.56367604]
[1646043186853,1.77833248,89.623,89.563,44.56367604]
[1646043187255,1.70821232,89.62,89.53,1.26]
[1646043187455,110.9,89.609,89.53,1.26]
[1646043187755,1.61956554,89.608,89.53,1.26]
[1646043188056,110.9,89.607,89.53,1.26]
[1646043188257,110.9,89.605,89.494,59.09271406]
[1646043188454,1.44899516,89.604,89.494,59.09271406]
[1646043188654,110.9,89.589,89.494,59.09271406]
[1646043188854,110.9,89.585,89.494,59.09271406]
[1646043189054,1.49883339,89.584,89.494,59.09271406]
[1646043189457,66.41,89.581,89.494,59.09271406]
[1646043189655,177.31,89.569,89.433,16.9554]
[1646043189855,1.53484537,89.566,89.433,16.9554]
[1646043190055,1.53484537,89.566,89.426,17.60430543]
[1646043190255,110.9,89.564,89.427,24.3286]
[1646043190455,110.9,89.549,89.427,24.3286]
[1646043190657,110.9,89.545,89.428,52.09865849]
[1646043190857,1.85451728,89.544,89.428,52.09865849]
[1646043191057,110.9,89.529,89.429,3.11721565]
[1646043191258,110.9,89.527,89.428,52.09865849]
[1646043191460,1.47404105,89.526,89.428,52.09865849]
[1646043191860,1.83510472,89.524,89.429,6.0]
[1646043192059,1.83510472,89.524,89.429,9.04131385]
[1646043192259,110.9,89.523,89.429,6.0]
[1646043192460,1.49884092,89.522,89.429,177.31]
[1646043192660,1.47393344,89.578,89.43,2.95755259]
[1646043192959,1.57676228,89.587,89.442,2.85633371]
[1646043193162,1.57676228,89.587,89.44,13.4]
[1646043193163,1.43714046,89.579,89.445,2.71626515]
[1646043193560,110.9,89.577,89.451,66.41]
[1646043193759,1.51067168,89.576,89.455,3.00285476]
[1646043193960,1.51067168,89.576,89.457,3.09501564]
[1646043194164,45.10354633,89.578,89.459,177.31]
[1646043194362,46.5192,89.588,89.472,2.9507651]
[1646043194560,46.5192,89.588,89.484,177.31]
[1646043194761,157.4192,89.588,89.486,110.9]
[1646043195064,46.5192,89.588,89.489,69.10667848]
[1646043195261,38.65152776,89.589,89.495,2.52077772]
[1646043195460,38.65152776,89.589,89.496,6.0]
[1646043195666,38.65152776,89.589,89.497,3.12383738]
[1646043195865,38.65152776,89.589,89.498,6.0]
[1646043196066,38.65152776,89.589,89.498,8.74678921]
[1646043196262,49.48098467,89.616,89.5,13.4]
[1646043196463,1.47249862,89.615,89.501,6.0]
[1646043196661,110.9,89.615,89.502,66.41]
[1646043196862,1.80134865,89.614,89.504,66.41]
[1646043197062,1.80134865,89.614,89.505,6.0]
[1646043197462,110.9,89.612,89.506,50.45180916]
[1646043197661,1.49747977,89.611,89.507,6.0]
[1646043199863,1.49747977,89.611,89.507,8.35105749]
[1646043200063,1.49747977,89.611,89.51,13.4]
[1646043200263,1.49747977,89.611,89.511,6.0]
[1646043200464,1.49747977,89.611,89.512,110.9]
[1646043200665,48.0337,89.616,89.514,66.41]
[1646043200866,48.0337,89.616,89.515,8.68765146]
[1646043201064,48.0337,89.616,89.52,13.4]
[1646043201267,48.0337,89.616,89.521,6.0]
[1646043201465,1.69571214,89.615,89.521,8.87875175]
[1646043201664,48.0337,89.616,89.523,110.9]
[1646043201864,48.0337,89.616,89.524,8.68960841]
[1646043202065,1.71354565,89.615,89.524,8.68960841]
[1646043202265,48.0337,89.616,89.524,8.68960841]
[1646043203266,133.5231,89.65,89.526,2.728259]
[1646043203475,133.5231,89.65,89.54,13.4]
[1646043203476,110.9,89.648,89.54,13.4]
[1646043203672,1.39038763,89.647,89.541,6.0]
[1646043203871,1.39038763,89.647,89.541,8.52043514]
[1646043204071,38.85381872,89.646,89.542,161.35180916]
[1646043204272,112.42347834,89.669,89.544,66.41]
[1646043204471,167.53,89.74,89.543,6.0]
[1646043204472,47.9174,89.686,89.552,66.41]
[1646043204771,47.9174,89.686,89.565,110.9]
[1646043204772,1.76055638,89.685,89.565,110.9]
[1646043204972,1.76055638,89.685,89.567,110.9]
[1646043205171,49.18090719,89.684,89.58,13.4]
[1646043205373,1.53956536,89.683,89.581,56.14227866]
[1646043205571,1.53956536,89.683,89.582,2.3544305]
[1646043205774,1.53956536,89.683,89.583,6.0]
[1646043206373,110.9,89.683,89.582,6.0]
[1646043206591,1.63395129,89.682,89.582,6.0]
[1646043208676,1.63395129,89.682,89.582,8.73790238]
[1646043208875,1.63395129,89.682,89.582,6.0]
[1646043210178,1.63395129,89.682,89.583,110.9]
[1646043210378,1.63395129,89.682,89.585,110.9]
[1646043210578,1.63395129,89.682,89.588,2.97741164]
[1646043210776,47.9174,89.686,89.584,6.0]
[1646043210777,47.9174,89.686,89.6,13.4]
[1646043210982,47.9174,89.686,89.61,13.4]
[1646043211179,43.84626109,89.685,89.611,6.0]
[1646043213379,1.86732624,89.683,89.602,43.63907257]
[1646043214186,1.73186035,89.681,89.57,13.4]
[1646043214379,1.73186035,89.681,89.576,6.0]
[1646043214580,1.73186035,89.681,89.561,6.0]
[1646043214581,110.9,89.679,89.561,6.0]
[1646043214878,1.80378358,89.678,89.561,6.0]
[1646043215080,1.80378358,89.678,89.56,13.4]
[1646043215279,110.9,89.676,89.561,56.25282997]
[1646043215480,112.32864311,89.676,89.561,56.25282997]
[1646043215679,110.9,89.674,89.561,56.25282997]
[1646043215881,110.9,89.659,89.561,56.25282997]
[1646043216082,110.9,89.657,89.561,56.25282997]
[1646043216281,1.72838978,89.656,89.561,56.25282997]
[1646043216682,110.9,89.654,89.561,56.25282997]
[1646043216883,1.78170028,89.653,89.561,56.25282997]
[1646043219183,110.9,89.649,89.561,56.25282997]
[1646043219381,1.78030594,89.648,89.561,56.25282997]
[1646043219886,110.9,89.646,89.561,56.25282997]
[1646043220084,110.9,89.646,89.522,3.08331604]
[1646043220085,176.81,89.638,89.5,13.4]
[1646043220284,110.4,89.626,89.492,46.7211]
[1646043220483,13.4,89.63,89.501,6.0]
[1646043220484,110.4,89.624,89.501,6.0]
[1646043220683,110.4,89.619,89.494,6.0]
[1646043220885,1.36105926,89.618,89.494,6.0]
[1646043221084,110.4,89.616,89.495,53.66372637]
[1646043221288,1.5555677,89.615,89.5,13.4]
[1646043221485,4.30235691,89.615,89.501,6.0]
[1646043221702,110.4,89.613,89.501,6.0]
[1646043221902,1.79007757,89.612,89.5,13.4]
[1646043222102,1.79007757,89.612,89.501,6.0]
[1646043222403,1.79007757,89.612,89.502,177.31]
[1646043222703,1.79007757,89.612,89.505,2.34737998]
[1646043222904,1.79007757,89.612,89.508,2.65209096]
[1646043223103,24.668,89.645,89.521,177.31]
[1646043223305,1.38596698,89.644,89.524,2.59838449]
[1646043223505,1.38596698,89.644,89.526,177.31]
[1646043223706,1.38596698,89.644,89.54,13.4]
[1646043223906,49.32955185,89.643,89.542,40.11762486]
[1646043224105,1.43979927,89.642,89.543,8.99763201]
[1646043224306,112.33979927,89.642,89.543,6.0]
[1646043224506,112.33979927,89.642,89.542,40.11762486]
[1646043224507,1.59770572,89.641,89.542,40.11762486]
[1646043224706,1.59770572,89.641,89.543,6.0]
[1646043224908,1.59770572,89.641,89.542,40.11762486]
[1646043225107,110.9,89.639,89.542,40.11762486]
[1646043225307,1.75177397,89.638,89.542,40.11762486]
[1646043227214,4.49856318,89.638,89.542,40.11762486]
[1646043227813,112.65177397,89.638,89.542,40.11762486]
[1646043228013,1.41521367,89.637,89.542,40.11762486]
[1646043228514,1.41521367,89.637,89.543,6.0]
[1646043228713,1.41521367,89.637,89.542,40.11762486]
[1646043228916,1.41521367,89.637,89.543,6.0]
[1646043229314,1.41521367,89.637,89.543,8.87145048]
[1646043229714,1.41521367,89.637,89.544,110.9]
[1646043229913,1.41521367,89.637,89.547,2.89414588]
[1646043230113,1.41521367,89.637,89.56,13.4]
[1646043230314,1.73417259,89.642,89.562,44.38129014]
[1646043230513,1.73417259,89.642,89.563,6.0]
[1646043231114,1.37162978,89.658,89.564,177.31]
[1646043231316,110.9,89.679,89.566,110.9]
[1646043231516,1.4317063,89.678,89.58,13.4]
[1646043231817,110.9,89.676,89.581,55.40006109]
[1646043232014,1.40637171,89.675,89.581,49.40006109]
[1646043233216,110.9,89.673,89.581,49.40006109]
[1646043233416,110.9,89.659,89.581,49.40006109]
[1646043233616,110.9,89.647,89.521,2.46448875]
[1646043233818,1.44722457,89.638,89.52,13.4]
[1646043234117,1.58624746,89.635,89.502,45.75]
[1646043234618,110.9,89.633,89.503,71.79652465]
[1646043234819,110.9,89.629,89.505,2.47284731]
[1646043235017,1.85595015,89.628,89.506,6.0]
[1646043235218,1.85595015,89.628,89.51,13.4]
[1646043235418,1.85595015,89.628,89.511,6.0]
[1646043235619,1.85595015,89.628,89.513,110.9]
[1646043235821,1.85595015,89.628,89.515,66.41]
[1646043236018,1.85595015,89.628,89.53,13.4]
[1646043236218,1.85595015,89.628,89.532,41.49798355]
[1646043236417,1.85595015,89.628,89.533,6.0]
[1646043236821,1.69639394,89.633,89.534,110.9]
[1646043237020,1.69639394,89.633,89.542,110.9]
[1646043237219,1.57025176,89.657,89.551,110.9]
[1646043237418,1.57025176,89.657,89.55,13.4]
[1646043237419,1.57025176,89.657,89.553,110.9]
[1646043237619,1.57025176,89.657,89.555,110.9]
[1646043237820,1.57025176,89.657,89.57,13.4]
[1646043238019,1.44458484,89.647,89.571,58.28336768]
[1646043238221,1.58630788,89.658,89.571,58.28336768]
[1646043238421,23.9089,89.657,89.571,58.28336768]
[1646043238619,1.66868194,89.656,89.571,58.28336768]
[1646043239224,48.18447238,89.655,89.571,58.28336768]
[1646043239527,1.80613393,89.654,89.571,58.28336768]
[1646043240023,112.70613393,89.654,89.571,52.28336768]
[1646043240225,1.80613393,89.654,89.571,52.28336768]
[1646043240428,1.80613393,89.654,89.572,6.0]
[1646043241325,23.9089,89.657,89.574,2.56520354]
[1646043241527,23.9089,89.657,89.576,110.9]
[1646043241727,23.9089,89.657,89.58,13.4]
[1646043241927,23.9089,89.657,89.581,6.0]
[1646043242330,1.60718103,89.684,89.586,110.9]
[1646043242528,45.7754,89.714,89.601,66.41]
[1646043242728,1.62384244,89.713,89.611,110.9]
[1646043242929,1.62384244,89.713,89.62,13.4]
[1646043243129,1.62384244,89.713,89.621,6.0]
[1646043243429,1.37100978,89.711,89.622,41.49798355]
[1646043243830,1.37100978,89.711,89.623,6.0]
[1646043244030,1.37100978,89.711,89.622,41.49798355]
[1646043244231,112.27100978,89.711,89.623,6.0]
[1646043244532,1.69935116,89.71,89.622,41.49798355]
[1646043244741,1.69935116,89.71,89.623,6.0]
[1646043245133,1.69935116,89.71,89.623,8.25669284]
[1646043245532,1.69935116,89.71,89.624,110.9]
[1646043245730,1.69935116,89.71,89.626,110.9]
[1646043245931,1.69935116,89.71,89.627,6.0]
[1646043246531,1.69935116,89.71,89.624,6.0]
[1646043249837,1.69935116,89.71,89.625,177.31]
[1646043250034,45.7754,89.714,89.626,116.9]
[1646043250234,45.7754,89.714,89.63,13.4]
[1646043250434,45.7754,89.714,89.631,6.0]
[1646043250636,45.7754,89.714,89.631,8.65610986]
[1646043253241,1.43611816,89.712,89.63,13.4]
[1646043254242,1.43611816,89.712,89.631,6.0]
[1646043255141,45.7754,89.714,89.631,6.0]
[1646043255357,1.60086484,89.713,89.631,6.0]
[1646043256359,110.9,89.713,89.631,6.0]
[1646043256559,1.82290457,89.713,89.631,6.0]
[1646043256760,45.7754,89.714,89.631,6.0]
[1646043256959,45.7754,89.714,89.631,8.5097812]
[1646043257363,45.7754,89.714,89.632,2.74678921]
[1646043257564,45.7754,89.714,89.633,6.0]
[1646043257961,45.7754,89.714,89.633,8.74678921]
[1646043259665,1.66342471,89.713,89.633,6.0]
[1646043259863,1.66342471,89.713,89.631,6.0]
[1646043260068,1.44710755,89.711,89.616,16.5302]
[1646043260264,1.44710755,89.711,89.596,2.74678921]
[1646043260464,110.9,89.711,89.615,16.9778]
[1646043260664,1.59007212,89.71,89.615,16.9778]
[1646043261064,4.33686133,89.71,89.615,16.9778]
[1646043261265,1.59007212,89.71,89.59,13.4]
[1646043261465,110.9,89.708,89.587,2.74678921]
[1646043261664,1.66507689,89.707,89.587,2.74678921]
[1646043261865,1.66507689,89.707,89.606,41.2961]
[1646043262065,2.74678921,89.706,89.606,41.2961]
[1646043263068,1.66507689,89.707,89.607,110.9]
[1646043263269,1.66507689,89.707,89.623,8.74678921]
[1646043263469,110.9,89.719,89.63,13.4]
[1646043263670,1.59847001,89.718,89.631,6.0]
[1646043263970,1.59847001,89.718,89.631,8.74678921]
[1646043264169,1.59847001,89.718,89.632,2.74678921]
[1646043264368,1.59847001,89.718,89.633,6.0]
[1646043264572,1.64739577,89.717,89.633,6.0]
[1646043264770,1.45725768,89.717,89.634,2.74678921]
[1646043264973,1.68202157,89.717,89.635,6.0]
[1646043265174,1.45615168,89.732,89.64,13.4]
[1646043265373,1.45615168,89.732,89.642,52.28336768]
[1646043265673,1.83956271,89.747,89.644,110.9]
[1646043265872,1.83956271,89.747,89.647,3.04860388]
[1646043266072,1.83956271,89.747,89.66,13.4]
[1646043266276,1.83956271,89.747,89.661,6.0]
[1646043266471,40.21850797,89.746,89.662,41.49798355]
[1646043266675,1.61107694,89.745,89.663,6.0]
[1646043267072,1.61107694,89.745,89.664,2.74678921]
[1646043267272,112.51107694,89.745,89.665,6.0]
[1646043267474,1.80937997,89.744,89.665,6.0]
[1646043267671,1.80937997,89.744,89.666,2.74678921]
[1646043267876,1.80937997,89.744,89.667,6.0]
[1646043268476,1.80937997,89.744,89.662,41.49798355]
[1646043268674,1.82578316,89.741,89.662,41.49798355]
[1646043269478,113.64678921,89.74,89.662,41.49798355]
[1646043269678,1.4157493,89.739,89.662,41.49798355]
[1646043270078,2.74678921,89.738,89.662,41.49798355]
[1646043271684,1.4157493,89.739,89.662,41.49798355]
[1646043275984,110.9,89.738,89.662,41.49798355]
[1646043276185,1.71038724,89.737,89.662,41.49798355]
[1646043277586,1.71038724,89.737,89.647,16.361]
[1646043277787,110.9,89.736,89.593,24.604]
[1646043277987,1.65671194,89.735,89.621,2.74678921]
[1646043278190,110.9,89.729,89.622,6.0]
[1646043278387,1.54536994,89.728,89.622,6.0]
[1646043278587,123.2501408,89.727,89.623,55.61670431]
[1646043278789,1.82792743,89.726,89.624,6.0]
[1646043279287,1.82792743,89.726,89.625,2.74678921]
[1646043279587,1.82792743,89.726,89.626,6.0]
[1646043279986,1.82792743,89.726,89.627,2.74678921]
[1646043280188,1.82792743,89.726,89.628,6.0]
[1646043282489,1.82792743,89.726,89.629,2.74678921]
[1646043282689,1.82792743,89.726,89.63,6.0]
[1646043283088,1.82792743,89.726,89.631,2.74678921]
[1646043283491,1.82792743,89.726,89.632,6.0]
[1646043283890,1.82792743,89.726,89.633,2.74678921]
[1646043284090,1.82792743,89.726,89.634,6.0]
[1646043284493,1.82792743,89.726,89.635,2.74678921]
[1646043284692,1.82792743,89.726,89.637,38.16464692]
[1646043285090,1.82792743,89.726,89.638,2.74678921]
[1646043286692,1.82792743,89.726,89.639,6.0]
[1646043287094,1.82792743,89.726,89.64,2.74678921]
[1646043287293,48.5012,89.728,89.641,6.0]
[1646043287694,48.5012,89.728,89.642,2.74678921]
[1646043287895,45.70548658,89.727,89.643,6.0]
[1646043288295,1.58380768,89.725,89.643,6.0]
[1646043288598,1.58380768,89.725,89.637,38.16464692]
[1646043288894,1.58380768,89.725,89.638,8.74678921]
[1646043290316,1.58380768,89.725,89.64,13.4]
[1646043290616,1.58380768,89.725,89.641,6.0]
[1646043291322,1.84897345,89.722,89.641,6.0]
[1646043291515,1.84897345,89.722,89.64,13.4]
[1646043292716,1.84897345,89.722,89.639,2.74678921]
[1646043292916,1.84897345,89.722,89.637,38.16464692]
[1646043293117,1.84897345,89.722,89.638,6.0]
[1646043293318,1.68014431,89.72,89.637,38.16464692]
[1646043294820,110.9,89.719,89.637,38.16464692]
[1646043295022,1.72571443,89.718,89.637,38.16464692]
[1646043295321,1.67939752,89.715,89.637,38.16464692]
[1646043295721,1.67939752,89.715,89.611,23.3332]
[1646043295722,177.31,89.71,89.596,11.65367017]
[1646043295923,1.70453586,89.698,89.597,6.0]
[1646043296123,1.70453586,89.698,89.58,6.0]
[1646043296325,1.72613062,89.696,89.572,6.0]
[1646043296523,1.72613062,89.696,89.58,16.07]
[1646043296724,2.95913628,89.695,89.582,48.87532343]
[1646043297025,2.95913628,89.695,89.583,6.0]
[1646043297427,2.74678921,89.694,89.583,6.0]
[1646043297624,2.74678921,89.694,89.584,2.74678921]
[1646043297825,2.74678921,89.694,89.585,6.0]
[1646043298225,2.74678921,89.694,89.586,2.74678921]
[1646043298424,2.74678921,89.694,89.587,6.0]
[1646043298625,2.74678921,89.694,89.586,2.74678921]
[1646043298828,4.55209455,89.694,89.586,2.74678921]
[1646043299026,4.55209455,89.694,89.588,2.74678921]
[1646043299231,1.80530534,89.694,89.589,6.0]
[1646043299433,2.74678921,89.693,89.589,6.0]
[1646043299628,2.74678921,89.693,89.59,2.74678921]
[1646043299829,2.74678921,89.693,89.591,6.0]
[1646043300230,2.74678921,89.693,89.592,26.14228921]
[1646043300434,1.55517556,89.693,89.593,8.79179399]
[1646043300629,1.55517556,89.693,89.593,11.5385832]
[1646043300830,1.55517556,89.693,89.594,19.59278577]
[1646043301031,1.55517556,89.693,89.595,8.67393268]
[1646043301230,1.55517556,89.693,89.596,44.9060278]
[1646043301432,1.55517556,89.693,89.61,16.07]
[1646043301631,46.6279,89.698,89.611,9.02496184]
[1646043302234,46.6279,89.698,89.612,162.52211264]
[1646043302433,46.6279,89.698,89.614,110.9]
[1646043302632,46.6279,89.698,89.615,3.01568735]
[1646043302833,46.6279,89.698,89.617,110.9]
[1646043303033,110.9,89.718,89.63,16.07]
[1646043303234,160.43777942,89.734,89.631,8.6890565]
[1646043303433,1.68036996,89.733,89.631,32.6363565]
[1646043303632,110.9,89.731,89.632,47.92436659]
[1646043303834,1.73838965,89.73,89.633,8.45154039]
[1646043304035,1.73838965,89.73,89.633,11.1983296]
[1646043304433,1.73838965,89.73,89.634,2.74678921]
[1646043304732,1.73838965,89.73,89.635,6.0]
[1646043304932,1.73838965,89.73,89.64,16.07]
[1646043305134,1.73838965,89.73,89.641,6.0]
[1646043306235,1.73838965,89.73,89.64,16.07]
[1646043306637,1.73838965,89.73,89.641,2.41022769]
[1646043309742,1.73838965,89.73,89.642,2.74678921]
[1646043309942,48.119,89.734,89.642,2.74678921]
[1646043310146,48.119,89.734,89.642,5.69985535]
[1646043310542,1.41844279,89.763,89.643,233.80590065]
[1646043310748,51.22509638,89.753,89.644,3.04054262]
[1646043310946,52.83462951,89.753,89.645,177.31]
[1646043311143,47.4237,89.768,89.651,177.31]
[1646043311343,1.51596972,89.782,89.661,177.31]
[1646043311544,110.9,89.789,89.662,2.62045572]
[1646043311744,110.9,89.789,89.663,177.31]
[1646043311941,110.9,89.789,89.664,2.54791636]
[1646043312142,47.92436197,89.76,89.666,2.82403969]
[1646043312341,47.92436197,89.76,89.681,47.57194121]
[1646043312542,110.9,89.789,89.682,2.55105091]
[1646043313242,25.80379317,89.79,89.683,2.33890001]
[1646043313443,110.9,89.789,89.683,2.33890001]
[1646043313644,41.84897677,89.777,89.683,2.33890001]
[1646043313844,25.80379317,89.79,89.681,44.9060278]
[1646043313845,37.87032326,89.748,89.681,44.9060278]
[1646043314044,24.2405,89.79,89.681,44.9060278]
[1646043314250,1.72434906,89.76,89.681,44.9060278]
[1646043314845,1.65000747,89.789,89.681,44.9060278]
[1646043315051,47.2446094,89.76,89.681,44.9060278]
[1646043315245,112.55000747,89.789,89.681,44.9060278]
[1646043315645,112.55000747,89.789,89.682,2.43887274]
[1646043316244,40.57157505,89.774,89.682,2.43887274]
[1646043316847,112.45566785,89.773,89.681,44.9060278]
[1646043317045,110.9,89.769,89.681,44.9060278]
[1646043317646,1.55566785,89.773,89.681,44.9060278]
[1646043318846,112.45566785,89.773,89.681,44.9060278]
[1646043319148,11.99707372,89.755,89.681,44.9060278]
[1646043319348,1.37107712,89.754,89.681,44.9060278]
[1646043319748,1.44408792,89.754,89.681,44.9060278]
[1646043319946,1.3892109,89.754,89.681,44.9060278]
[1646043320146,1.58146926,89.776,89.681,44.9060278]
[1646043320848,110.9,89.777,89.681,44.9060278]
[1646043321047,1.76567273,89.775,89.681,44.9060278]
[1646043321949,44.91165177,89.75,89.681,44.9060278]
[1646043322349,1.76567273,89.775,89.681,44.9060278]
[1646043323349,110.9,89.77,89.681,44.9060278]
[1646043323750,44.95631731,89.771,89.681,44.9060278]
[1646043323948,7.61233146,89.757,89.681,44.9060278]
[1646043324147,1.73474923,89.756,89.681,44.9060278]
[1646043324651,24.3176,89.778,89.681,44.9060278]
[1646043324848,1.75347746,89.755,89.681,44.9060278]
[1646043325053,1.79079817,89.754,89.681,44.9060278]
[1646043325248,112.34174301,89.777,89.681,44.9060278]
[1646043325448,48.96842732,89.767,89.681,44.9060278]
[1646043325647,1.5538327,89.766,89.681,44.9060278]
[1646043325848,23.2698,89.765,89.681,44.9060278]
[1646043327151,23.2698,89.765,89.682,110.9]
[1646043327349,23.2698,89.765,89.684,110.9]
[1646043327549,23.2698,89.765,89.686,110.9]
[1646043327751,23.2698,89.765,89.7,16.07]
[1646043327952,23.2698,89.765,89.7,30.45]
[1646043328151,23.2698,89.765,89.701,34.32405543]
[1646043328651,1.39880447,89.789,89.701,34.32405543]
[1646043328851,24.4026,89.788,89.701,34.32405543]
[1646043329052,1.64165654,89.787,89.701,34.32405543]
[1646043329654,151.81926972,89.837,89.705,66.41]
[1646043329855,1.49395844,89.835,89.721,110.9]
[1646043330052,150.3033,89.837,89.731,110.9]
[1646043330053,73.3226,89.837,89.731,110.9]
[1646043330254,1.77669213,89.86,89.741,177.31]
[1646043330478,1.77669213,89.86,89.751,110.9]
[1646043330674,46.76839142,89.859,89.753,110.9]
[1646043330874,46.76839142,89.859,89.754,2.33899964]
[1646043331077,46.76839142,89.859,89.754,22.49332491]
[1646043331273,46.76839142,89.859,89.755,25.78634061]
[1646043331474,157.66839142,89.859,89.756,2.66441966]
[1646043331774,157.66839142,89.859,89.771,18.86177126]
[1646043331975,157.66839142,89.859,89.772,2.55496726]
[1646043332179,46.76839142,89.859,89.772,179.86496726]
[1646043332380,110.9,89.879,89.774,177.31]
[1646043332585,110.9,89.871,89.773,25.80605628]